bitfinex-derivatives/quotes_ETHF0:USTF0_20250321
["timestamp","ask_amount","ask_price","bid_price","bid_amount"]
[1742565966364,1.02777,1946.7,1946.6,1.03547783]
[1742565966963,2.36747,1946.7,1946.6,1.03551783]
[1742565967676,2.36747,1946.7,1946.6,0.00769783]
[1742565968066,1.02792,1946.4,1946.3,3.2078]
[1742565968377,4.75292,1946.4,1946.3,3.2078]
[1742565968566,4.75292,1946.4,1946.3,45.03578]
[1742565968966,6.09262,1946.4,1946.3,40.8]
[1742565969362,1.02798,1946.3,1946.2,0.00769783]
[1742565969570,6.24448,1946.3,1946.2,0.00769783]
[1742565969772,16.18212746,1946.3,1946.2,0.00769783]
[1742565969967,12.97432746,1946.3,1946.2,0.00769783]
[1742565970270,1.02778,1946.7,1946.6,1.02782]
[1742565970471,5.0634,1946.7,1946.6,1.02782]
[1742565970976,5.0634,1946.7,1946.5,1.02784]
[1742565971172,7.63294,1946.7,1946.2,0.00769783]
[1742565971471,1.02792,1946.5,1946.4,1.0279]
[1742565971675,5.0634,1946.7,1946.4,2.56973]
[1742565971876,6.09117,1946.7,1946.6,1.02782]
[1742565972071,3.725,1946.7,1946.6,1.02782]
[1742565972368,4.75274,1946.8,1946.7,1.02777]
[1742565972574,3.725,1946.8,1946.7,4.23557]
[1742565972776,3.725,1946.8,1946.7,45.03557]
[1742565972965,4.75271,1946.8,1946.7,45.03557]
[1742565973171,4.75271,1946.8,1946.7,40.8]
[1742565973772,3.725,1946.8,1946.7,45.03557]
[1742565974281,4.75271,1946.8,1946.7,41.82777]
[1742565974572,4.75271,1946.8,1946.7,40.8]
[1742565975480,2.56947,1946.7,1946.3,3.2078]
[1742565975779,1.02792,1946.4,1946.3,4.23572]
[1742565975976,2.56955,1946.6,1946.2,1.03568783]
[1742565975977,1.02798,1946.3,1946.2,1.03568783]
[1742565976167,1.02798,1946.3,1946.2,0.00769783]
[1742565976366,1.02794,1946.4,1946.3,1.02792]
[1742565976575,1.02798,1946.3,1946.2,41.83567783]
[1742565976778,2.35507,1946.4,1946.3,1.02798]
[1742565976976,2.35507,1946.4,1946.2,41.83568783]
[1742565976977,1.02798,1946.3,1946.2,41.83568783]
[1742565977176,2.35508,1946.3,1946.2,45.04348783]
[1742565977583,0.6867,1946.7,1946.2,46.58549783]
[1742565977876,4.75187,1946.5,1946.4,4.23572]
[1742565978082,3.724,1946.5,1946.4,4.23572]
[1742565978273,4.75187,1946.5,1946.4,4.23572]
[1742565978477,3.724,1946.5,1946.4,4.23572]
[1742565978870,3.724,1946.5,1946.2,3.21549783]
[1742565979075,2.45327,1946.4,1946.3,1.02796]
[1742565979277,2.45327,1946.4,1946.3,41.82796]
[1742565979477,2.45327,1946.4,1946.3,40.8]
[1742565980283,1.02785,1946.6,1946.5,1.02782]
[1742565980488,1.0279,1946.5,1946.4,1.02787]
[1742565980677,1.02792,1946.4,1946.3,41.82792]
[1742565981474,1.02792,1946.4,1946.3,40.8]
[1742565982587,1.02798,1946.3,1946.2,0.00769783]
[1742565982788,6.08258,1946.3,1946.2,1.03572783]
[1742565982993,6.08258,1946.3,1946.2,41.83572783]
[1742565984187,3.724,1946.6,1946.2,44.01549783]
[1742565984488,2.35842,1946.7,1946.6,1.02782]
[1742565984690,1.02792,1946.5,1946.4,1.02789]
[1742565985081,1.02785,1946.6,1946.5,1.02782]
[1742565985280,1.02785,1946.6,1946.5,4.23562]
[1742565986191,1.02785,1946.6,1946.5,3.2078]
[1742565986686,1.02785,1946.6,1946.2,41.83569783]
[1742565986884,1.02798,1946.3,1946.2,41.83569783]
[1742565987482,1.02798,1946.3,1946.2,40.80769783]
[1742565987688,1.02798,1946.3,1946.2,41.83572783]
[1742565988193,1.02798,1946.3,1946.2,40.80769783]
[1742565988684,1.02798,1946.3,1946.2,41.83572783]
[1742565989078,2.37598,1946.3,1946.2,41.83572783]
[1742565989278,2.37598,1946.3,1946.2,0.00769783]
[1742565989584,1.02813,1946.0,1945.9,4.23599]
[1742565989783,4.75213,1946.0,1945.9,40.8]
[1742565990184,4.75213,1946.0,1945.9,41.82819]
[1742565990483,4.75213,1946.0,1945.9,40.8]
[1742565991890,4.75213,1946.0,1945.9,41.82819]
[1742565992392,6.13363,1946.0,1945.9,40.8]
[1742565993486,1.02829,1945.7,1945.6,4.90761]
[1742565993683,1.02829,1945.7,1945.6,1.69981]
[1742565993880,1.02829,1945.7,1945.6,45.70761]
[1742565994081,2.40978,1945.8,1945.7,1.02829]
[1742565994490,2.40974,1945.8,1945.7,1.02829]
[1742565995382,1.3815,1945.8,1945.7,1.02829]
[1742565995587,1.3815,1945.8,1945.6,44.6793]
[1742565995588,1.02824,1945.9,1945.8,1.0282]
[1742565995788,2.41724,1945.9,1945.8,1.0282]
[1742565996595,1.02828,1945.8,1945.7,1.02825]
[1742565997494,1.02828,1945.8,1945.6,44.6793]
[1742565997495,1.389,1945.9,1945.8,1.02824]
[1742565997678,0.41916028,1946.1,1946.0,1.02813]
[1742565997679,1.03579783,1946.1,1946.0,1.02813]
[1742565997885,1.03579783,1946.1,1945.8,3.2078]
[1742565997886,1.02818,1946.0,1945.9,1.02814]
[1742565998091,1.02819,1945.9,1945.8,4.236]
[1742565998291,2.44699,1945.9,1945.8,1.0282]
[1742565998591,6.71330327,1946.1,1945.9,1.02813]
[1742565998592,1.02817,1946.0,1945.9,1.02813]
[1742565998786,2.44697,1946.0,1945.9,1.02813]
[1742565998984,2.57054,1945.9,1945.6,44.6793]
[1742565999182,4.75328,1945.8,1945.7,1.02829]
[1742565999383,1.02829,1945.7,1945.6,45.70761]
[1742565999590,1.02845,1945.4,1945.3,4.23626]
[1742566000184,1.02845,1945.4,1945.3,44.0078]
[1742566000589,2.38745,1945.4,1945.3,45.0363]
[1742566001093,2.38745,1945.4,1945.3,44.0078]
[1742566001397,2.38745,1945.4,1945.2,1.3955]
[1742566001398,1.0285,1945.3,1945.2,0.7163]
[1742566001585,1.0285,1945.3,1945.0,3.2078]
[1742566001586,1.02861,1945.1,1945.0,3.2078]
[1742566001787,1.02861,1945.1,1945.0,40.8]
[1742566001987,1.02861,1945.1,1945.0,45.03646]
[1742566002186,2.38761,1945.1,1945.0,45.03646]
[1742566002384,3.725,1945.2,1945.1,1.02861]
[1742566002894,1.02851,1945.3,1945.2,1.0285]
[1742566003092,1.02851,1945.3,1945.2,4.2363]
[1742566003294,4.75349,1945.4,1945.3,1.0285]
[1742566003488,1.0285,1945.3,1945.2,4.23632]
[1742566003687,3.725,1945.4,1945.0,44.02564]
[1742566003688,1.0286,1945.2,1945.0,44.6619]
[1742566003891,1.0286,1945.2,1945.1,1.02858]
[1742566004095,1.02853,1945.3,1945.2,1.02851]
[1742566004295,4.7535,1945.4,1945.3,1.0285]
[1742566004495,4.7535,1945.4,1945.3,2.4565]
[1742566005001,4.406,1945.6,1945.3,3.99918]
[1742566005202,1.3094,1945.9,1945.6,1.02829]
[1742566005203,1.02831,1945.7,1945.6,1.02829]
[1742566005396,5.1418,1945.8,1945.4,7.02621]
[1742566005397,1.0284,1945.5,1945.4,7.02621]
[1742566005700,4.7534,1945.5,1945.4,1.428]
[1742566005907,1.0285,1945.3,1945.2,3.2078]
[1742566006098,1.4168,1945.4,1945.1,3.12317]
[1742566006400,1.02856,1945.2,1945.1,0.6666]
[1742566006600,1.02856,1945.2,1945.1,1.69521]
[1742566006999,4.75354,1945.3,1945.2,1.02852]
[1742566007193,2.44529,1945.4,1945.3,1.0285]
[1742566007390,4.75349,1945.4,1945.3,4.2363]
[1742566007596,1.0285,1945.3,1945.2,1.02853]
[1742566007891,2.38846,1945.3,1945.1,0.6666]
[1742566008100,1.02856,1945.2,1945.1,1.69516]
[1742566008298,1.02856,1945.2,1945.1,1.69517]
[1742566008493,1.02856,1945.2,1945.1,0.6666]
[1742566008793,1.02861,1945.1,1945.0,41.82866]
[1742566008999,2.38851,1945.1,1945.0,45.03646]
[1742566009691,2.38851,1945.1,1945.0,40.8]
[1742566009999,6.11351,1945.1,1945.0,41.82866]
[1742566010403,6.11351,1945.1,1945.0,40.8]
[1742566012292,1.02866,1945.0,1944.9,1.99999]
[1742566012492,2.46106,1945.0,1944.9,3.02871]
[1742566012800,2.46106,1945.0,1944.9,43.82871]
[1742566013094,2.46106,1945.0,1944.9,42.79999]
[1742566013300,2.46106,1945.0,1944.9,43.82871]
[1742566014003,2.46106,1945.0,1944.9,42.79999]
[1742566014193,1.02866,1945.0,1944.9,42.79999]
[1742566014393,2.46106,1945.0,1944.9,42.79999]
[1742566014891,3.725,1945.1,1945.0,1.02866]
[1742566015096,3.725,1945.4,1945.0,3.2078]
[1742566015295,3.725,1945.4,1945.3,4.2363]
[1742566015495,4.75345,1945.4,1945.3,4.2363]
[1742566015800,3.725,1945.4,1945.3,45.0363]
[1742566016101,4.75345,1945.4,1945.3,41.8285]
[1742566016287,6.07725,1945.4,1945.3,41.8285]
[1742566016490,6.07725,1945.4,1945.3,45.0363]
[1742566016688,4.75341,1945.5,1945.4,1.0284]
[1742566017089,4.75341,1945.5,1945.3,41.82847]
[1742566017090,1.02845,1945.4,1945.3,41.82847]
[1742566017298,2.35225,1945.4,1945.3,41.82847]
[1742566017793,1.3238,1945.4,1945.3,45.03627]
[1742566017993,4.75344,1945.5,1945.4,1.02845]
[1742566018593,1.02845,1945.4,1945.3,44.0078]
[1742566018895,2.57137,1945.3,1945.1,3.2078]
[1742566019090,7.69674,1945.2,1945.0,3.2078]
[1742566019296,5.1253,1945.2,1945.1,1.02861]
[1742566019491,3.725,1945.2,1945.1,1.02861]
[1742566020196,1.02848,1945.4,1945.3,1.0285]
[1742566020497,1.02856,1945.3,1945.2,1.02852]
[1742566020699,1.02861,1945.1,1945.0,0.6755]
[1742566021094,1.02866,1945.0,1944.9,5.20779]
[1742566021395,6.15396,1945.0,1944.9,5.20779]
[1742566021997,6.15396,1945.0,1944.9,46.00779]
[1742566022303,1.02886,1944.7,1944.6,1.02883]
[1742566022499,4.75386,1944.7,1944.6,1.02883]
[1742566022698,4.75386,1944.7,1944.6,41.82883]
[1742566023003,1.02898,1944.5,1944.4,1.02895]
[1742566023203,1.02898,1944.5,1944.0,3.725]
[1742566023204,2.57252,1944.4,1944.0,3.2078]
[1742566023502,1.02925,1943.9,1943.8,3.2078]
[1742566023705,3.725,1943.9,1943.8,1.0293]
[1742566024001,2.38896705,1944.4,1944.3,1.02903]
[1742566024002,1.08626705,1944.4,1944.3,1.02903]
[1742566024191,1.3027,1944.3,1944.1,3.2078]
[1742566024393,1.0291,1944.2,1944.1,1.0291]
[1742566024599,3.725,1944.2,1944.1,4.23694]
[1742566024799,0.6756,1944.4,1944.3,1.02903]
[1742566025000,3.725,1944.5,1944.4,1.02898]
[1742566025208,0.41478871,1944.8,1944.5,1.02893]
[1742566025209,5.1049,1944.6,1944.5,1.02893]
[1742566025409,6.13377,1944.6,1944.5,1.02893]
[1742566025701,6.13377,1944.6,1944.5,4.23673]
[1742566025702,3.725,1944.6,1944.5,4.23673]
[1742566025904,5.11259783,1944.8,1944.7,1.02882]
[1742566026096,1.02885,1944.7,1944.6,1.02887]
[1742566026295,1.02887,1944.6,1944.5,3.2078]
[1742566026496,1.3799,1944.7,1944.4,1.02895]
[1742566026497,1.02893,1944.5,1944.4,1.02895]
[1742566026697,2.40883,1944.5,1944.4,1.02895]
[1742566026897,2.40883,1944.5,1944.3,0.7052]
[1742566027095,1.02898,1944.4,1944.3,1.73421]
[1742566027298,2.40888,1944.4,1944.3,4.94201]
[1742566027498,2.40888,1944.4,1944.3,44.713]
[1742566027805,1.3799,1944.4,1944.3,4.23683]
[1742566028105,1.3799,1944.4,1944.1,40.8]
[1742566028302,1.3799,1944.4,1944.2,1.02907]
[1742566028303,1.02907,1944.3,1944.2,1.02907]
[1742566028613,1.02906,1944.3,1944.2,1.02906]
[1742566028907,1.296,1944.3,1944.2,1.02906]
[1742566029106,2.32507,1944.3,1944.1,40.8]
[1742566029300,1.296,1944.3,1944.1,41.82911]
[1742566029496,2.32507,1944.3,1944.2,1.02909]
[1742566029701,1.02909,1944.2,1944.1,45.03691]
[1742566030000,1.02909,1944.2,1944.1,40.8]
[1742566030201,4.75509,1944.2,1944.1,40.8]
[1742566030400,4.75509,1944.2,1944.1,45.03694]
[1742566030600,3.726,1944.2,1944.1,45.03694]
[1742566031212,4.75509,1944.2,1944.1,40.8]
[1742566031405,3.726,1944.2,1944.1,45.03694]
[1742566031814,4.75509,1944.2,1944.1,40.8]
[1742566032197,1.02914,1944.1,1944.0,3.2078]
[1742566032402,1.02925,1943.9,1943.8,4.23707]
[1742566032604,1.2923,1944.1,1943.8,3.2078]
[1742566032810,1.02921,1944.0,1943.9,41.82921]
[1742566033012,2.32147,1944.1,1944.0,1.02919]
[1742566033198,0.7047,1944.4,1944.3,1.02903]
[1742566033403,3.726,1944.4,1944.3,4.23683]
[1742566034010,2.32121,1944.6,1944.4,1.02893]
[1742566034312,1.02898,1944.4,1944.3,40.8]
[1742566034617,4.75496,1944.5,1944.4,1.02898]
[1742566034909,5.0342,1944.5,1944.4,1.02898]
[1742566035103,4.75489,1944.6,1944.5,1.02893]
[1742566035303,3.726,1944.6,1944.5,4.23673]
[1742566035609,2.33705,1944.7,1944.6,1.02887]
[1742566035917,3.73369783,1944.8,1944.7,1.02882]
[1742566036105,3.73369783,1944.8,1944.7,4.23662]
[1742566036311,1.02882,1944.7,1944.6,0.6505]
[1742566036510,1.02887,1944.6,1944.5,1.02889]
[1742566036703,1.3082,1944.7,1944.4,3.8583]
[1742566036704,1.02893,1944.5,1944.4,3.8583]
[1742566036905,1.02898,1944.4,1944.3,40.8]
[1742566037106,1.02914,1944.1,1944.0,0.6571]
[1742566037705,5.0194,1944.2,1944.0,0.6571]
[1742566037908,5.0194,1944.2,1944.1,4.23694]
[1742566038298,3.726,1944.2,1944.1,4.23694]
[1742566038503,4.75509,1944.2,1944.1,1.02914]
[1742566038703,4.75509,1944.2,1944.1,4.23694]
[1742566038907,3.726,1944.2,1944.1,4.23694]
[1742566040415,1.2934,1944.3,1944.2,1.02909]
[1742566040611,0.6873,1944.6,1944.5,1.02893]
[1742566040807,4.4133,1944.6,1944.4,3.2078]
[1742566041007,3.726,1944.6,1944.3,3.2078]
[1742566041312,1.02898,1944.4,1944.3,1.02899]
[1742566041512,1.02898,1944.4,1944.3,40.8]
[1742566041815,6.2982,1944.6,1943.8,0.6838]
[1742566041816,1.02912,1944.2,1943.8,0.6838]
[1742566042110,1.02919,1944.0,1943.9,40.8]
[1742566042408,1.02919,1944.0,1943.9,41.82923]
[1742566042612,1.3302,1944.0,1943.5,3.2078]
[1742566042802,1.02937,1943.7,1943.6,1.0294]
[1742566043006,3.726,1943.8,1943.5,3.2078]
[1742566043206,1.0293,1943.9,1943.7,4.23713]
[1742566043420,1.0293,1943.9,1943.3,3.93418]
[1742566043421,3.73369783,1943.8,1943.5,3.2078]
[1742566043715,3.73369783,1943.8,1943.7,4.23715]
[1742566044504,0.00769783,1943.8,1943.7,4.23715]
[1742566044711,0.00769783,1943.8,1943.7,1.02935]
[1742566044911,0.00769783,1943.8,1943.7,4.23715]
[1742566045203,0.00769783,1943.8,1943.6,1.3768]
[1742566045414,1.40259783,1943.8,1943.7,4.23715]
[1742566045918,0.00769783,1943.8,1943.7,4.89615]
[1742566046416,3.2078,1944.8,1943.7,11.51348]
[1742566046614,1.3267,1944.4,1944.3,1.02903]
[1742566047011,1.3267,1944.4,1944.3,2.45593]
[1742566047213,2.35568,1944.4,1944.3,1.4269]
[1742566047511,1.02903,1944.3,1944.2,3.2078]
[1742566047718,1.3267,1944.3,1944.2,4.23689]
[1742566048016,2.35573,1944.3,1944.2,45.4347]
[1742566048313,0.00771784,1944.5,1944.4,1.02898]
[1742566048517,1.33441784,1944.5,1944.2,45.4347]
[1742566048715,1.02903,1944.3,1944.2,45.4347]
[1742566048913,4.75503,1944.3,1944.2,40.8]
[1742566049312,3.726,1944.3,1944.2,45.03689]
[1742566049517,3.726,1944.3,1944.2,46.42099]
[1742566049828,1.33441784,1944.5,1944.4,1.02898]
[1742566050119,0.00771784,1944.5,1944.4,4.23678]
[1742566050514,0.00771784,1944.5,1944.4,5.62088]
[1742566050715,1.35751784,1944.5,1944.4,2.41308]
[1742566050928,1.35751784,1944.5,1944.4,5.62088]
[1742566051114,0.00771784,1944.5,1944.4,5.62088]
[1742566052316,5.0368,1944.9,1944.8,1.02877]
[1742566052516,1.3108,1944.9,1944.8,4.23657]
[1742566052712,1.02859,1945.2,1944.8,3.2078]
[1742566052917,1.02866,1945.0,1944.9,2.3356]
[1742566053218,1.02872,1944.9,1944.8,4.23652]
[1742566053419,1.02872,1944.9,1944.8,3.21551784]
[1742566053620,1.02872,1944.9,1944.8,4.24428784]
[1742566054124,2.33952,1944.9,1944.8,0.00771784]
[1742566054724,1.02893,1944.5,1944.4,1.02895]
[1742566055021,4.75388,1944.6,1944.4,2.33584]
[1742566055224,3.725,1944.6,1944.3,4.2368]
[1742566055520,1.3257,1944.5,1944.3,3.2078]
[1742566055722,2.35467,1944.5,1944.4,1.02898]
[1742566056023,3.725,1944.8,1944.4,1.3852]
[1742566056224,2.35452,1944.7,1944.6,3.2078]
[1742566056523,1.02899,1944.4,1944.2,44.72961784]
[1742566056726,0.7064,1944.6,1944.4,1.02897]
[1742566056918,0.7064,1944.6,1944.5,1.02893]
[1742566057118,0.7064,1944.6,1944.4,1.02896]
[1742566057119,1.02893,1944.5,1944.4,1.02896]
[1742566057318,1.02898,1944.4,1944.3,2.41419]
[1742566057617,3.725,1944.7,1944.4,2.57238]
[1742566057817,5.0768,1944.9,1944.7,1.02878]
[1742566058022,1.02882,1944.7,1944.6,2.36176]
[1742566058220,1.0288,1944.8,1944.7,1.0288]
[1742566058415,1.02882,1944.7,1944.6,2.36174]
[1742566058626,1.02881,1944.8,1944.7,1.0288]
[1742566059122,6.10556,1944.9,1944.6,4.5407]
[1742566059323,6.10556,1944.9,1944.8,1.02877]
[1742566059521,1.02877,1944.8,1944.7,2.36168]
[1742566059826,7.64864,1944.9,1944.5,4.23668]
[1742566060124,1.02887,1944.7,1944.6,1.02886]
[1742566060327,1.02884,1944.7,1944.6,1.02883]
[1742566060627,5.0768,1944.9,1944.5,5.78013]
[1742566060927,3.73271784,1945.1,1945.0,1.02866]
[1742566061119,3.73271784,1945.1,1945.0,4.23646]
[1742566061813,4.76132784,1945.1,1945.0,4.23646]
[1742566062018,3.73271784,1945.1,1945.0,4.23646]
[1742566062328,0.00771784,1945.1,1945.0,4.94286]
[1742566063219,1.03632784,1945.1,1945.0,4.94286]
[1742566063419,0.00771784,1945.1,1945.0,4.94286]
[1742566063929,10.70165,1945.8,1945.4,1.02844]
[1742566064127,1.02845,1945.5,1945.4,1.02844]
[1742566064321,1.0284,1945.5,1945.4,4.23623]
[1742566064630,1.02831,1945.7,1945.6,1.02832]
[1742566064830,1.0283,1945.7,1945.6,1.02832]
[1742566065030,4.3732,1945.8,1945.5,4.607]
[1742566065223,1.02835,1945.6,1945.5,3.21551784]
[1742566066026,1.02835,1945.6,1945.5,0.00771784]
[1742566066725,1.11806283,1945.6,1945.5,0.00771784]
[1742566066929,1.77726283,1945.6,1945.5,0.00771784]
[1742566067331,1.0285,1945.4,1945.3,1.02849]
[1742566067532,3.724,1945.4,1945.2,1.3279]
[1742566067733,3.724,1945.4,1945.3,1.0285]
[1742566067734,4.75246,1945.4,1945.3,1.0285]
[1742566068032,4.75245,1945.4,1945.3,1.0285]
[1742566068230,1.0285,1945.3,1945.2,2.35642]
[1742566068418,1.0285,1945.3,1945.2,2.36413784]
[1742566068624,4.75246,1945.4,1945.3,1.0285]
[1742566068821,3.724,1945.4,1945.3,4.2363]
[1742566069133,1.0284,1945.5,1945.4,1.02841]
[1742566069330,1.02845,1945.4,1945.3,4.23627]
[1742566069628,3.724,1945.6,1945.2,0.00771784]
[1742566069629,1.0285,1945.3,1945.2,0.00771784]
[1742566070118,1.73049,1945.4,1945.3,1.0285]
[1742566070317,3.62782075,1945.8,1945.4,1.0284]
[1742566070530,1.02835,1945.6,1945.5,1.3355]
[1742566070732,2.08543075,1945.8,1945.5,1.3355]
[1742566071025,1.02835,1945.6,1945.5,1.3355]
[1742566071225,5.77854,1945.7,1945.2,0.00771784]
[1742566071429,1.0285,1945.3,1945.2,0.00771784]
[1742566072026,1.6897,1945.3,1945.2,0.00771784]
[1742566073029,4.3852,1945.3,1945.2,1.03627784]
[1742566073228,1.72022,1945.5,1945.4,1.02845]
[1742566073442,4.4158,1945.5,1945.4,1.02845]
[1742566073635,3.724,1945.5,1945.4,1.02845]
[1742566073825,3.724,1945.5,1945.4,2.39215]
[1742566074029,0.6612,1945.7,1945.5,1.0284]
[1742566074246,4.75238,1945.6,1945.5,1.0284]
[1742566074537,1.0284,1945.5,1945.4,2.39212]
[1742566074737,4.75238,1945.6,1945.4,2.39212]
[1742566074937,1.0284,1945.5,1945.4,1.3637]
[1742566075139,1.0285,1945.3,1945.2,1.03623784]
[1742566075437,2.39949,1945.4,1945.3,1.0285]
[1742566075633,2.39949,1945.4,1945.3,4.2363]
[1742566075829,3.724,1945.6,1945.3,3.2078]
[1742566076034,1.0284,1945.5,1945.4,1.3637]
[1742566076333,2.3964,1945.5,1945.4,2.39213]
[1742566076638,1.368,1945.5,1945.4,2.39213]
[1742566076837,2.3964,1945.5,1945.4,2.39213]
[1742566077036,2.3964,1945.5,1945.4,1.3637]
[1742566077231,2.3964,1945.5,1945.4,2.39215]
[1742566077635,2.3964,1945.5,1945.4,1.3637]
[1742566077841,2.3964,1945.5,1945.4,2.39215]
[1742566078026,2.3964,1945.5,1945.4,1.3637]
[1742566078230,2.3964,1945.5,1945.4,2.39215]
[1742566078532,2.3964,1945.5,1945.4,1.3637]
[1742566078734,1.368,1945.5,1945.4,1.3637]
[1742566078946,2.3964,1945.5,1945.4,2.39215]
[1742566079239,2.3964,1945.5,1945.4,1.3637]
[1742566079425,2.3964,1945.5,1945.4,2.39215]
[1742566080132,4.75238,1945.6,1945.5,1.0284]
[1742566080327,2.32795,1945.6,1945.5,5.5636]
[1742566080528,2.32795,1945.6,1945.5,2.3558]
[1742566080738,3.87048,1945.6,1945.2,0.00771784]
[1742566080959,1.2996,1945.6,1945.2,1.33511784]
[1742566081137,1.02847,1945.4,1945.3,1.02847]
[1742566081439,4.75144,1945.5,1945.4,1.02843]
[1742566081641,1.02849,1945.4,1945.3,1.02846]
[1742566081835,2.32806,1945.4,1945.3,1.0285]
[1742566082239,2.32805,1945.4,1945.3,1.0285]
[1742566082540,4.7514,1945.5,1945.4,1.02845]
[1742566082940,4.75142,1945.5,1945.4,1.02845]
[1742566083639,3.723,1945.5,1945.4,4.23625]
[1742566083844,2.45305,1945.6,1945.5,1.0284]
[1742566084045,2.45305,1945.6,1945.5,2.3231]
[1742566084340,2.45305,1945.6,1945.5,1.2947]
[1742566085538,1.0284,1945.5,1945.4,4.23624]
[1742566085742,2.3621,1945.5,1945.4,4.23624]
[1742566086043,1.3337,1945.5,1945.4,4.23624]
[1742566086242,0.40897075,1945.8,1945.5,2.57101]
[1742566086436,0.00771784,1945.8,1945.7,4.23609]
[1742566086637,1.03595784,1945.8,1945.7,5.63919]
[1742566086843,1.03595784,1945.8,1945.7,2.43139]
[1742566087038,2.36965784,1945.8,1945.7,2.43139]
[1742566087234,2.36965784,1945.8,1945.7,1.4031]
[1742566087540,2.36965784,1945.8,1945.7,1.02829]
[1742566087849,2.36965784,1945.8,1945.5,1.02838]
[1742566087850,1.0284,1945.6,1945.5,1.02838]
[1742566088145,5.06441784,1945.8,1945.5,3.2078]
[1742566088342,0.00771784,1945.8,1945.7,4.23609]
[1742566088639,0.674,1946.0,1945.7,4.23609]
[1742566088640,0.6557,1946.2,1946.1,1.02808]
[1742566089033,6.10691,1946.3,1946.2,1.02803]
[1742566089237,5.0789,1946.3,1946.2,5.57293]
[1742566089434,24.08378376,1946.7,1946.6,1.02782]
[1742566089635,24.08378376,1946.7,1946.5,1.02783]
[1742566089836,24.08378376,1946.7,1946.6,1.02782]
[1742566089837,20.41966944,1946.7,1946.6,1.02782]
[1742566090145,20.41966944,1946.7,1946.6,4.23562]
[1742566090646,22.13763944,1946.7,1946.6,3.2078]
[1742566090850,3.07387,1946.7,1946.6,3.2078]
[1742566091939,2.0461,1946.7,1946.6,4.23562]
[1742566092144,1.3559,1946.7,1946.6,4.23562]
[1742566092549,0.00771784,1946.8,1946.7,1.02777]
[1742566092750,1.38191784,1946.8,1946.7,2.40167]
[1742566092953,1.02777,1946.7,1946.6,3.2078]
[1742566093137,2.40964784,1946.8,1946.6,5.60952]
[1742566093341,1.38191784,1946.8,1946.7,1.02777]
[1742566093543,1.38191784,1946.8,1946.7,2.40167]
[1742566093852,0.00771784,1946.8,1946.7,1.3739]
[1742566094149,0.00771784,1946.8,1946.7,2.40167]
[1742566094350,1.03542784,1946.8,1946.7,1.3739]
[1742566094548,0.00771784,1946.8,1946.7,2.40167]
[1742566095547,0.00771784,1946.8,1946.7,3.09847]
[1742566097450,0.00771784,1946.8,1946.7,6.30627]
[1742566098050,0.00771784,1946.8,1946.7,3.09847]
[1742566098249,1.40771784,1946.8,1946.7,3.09847]
[1742566098654,1.40771784,1946.8,1946.7,6.30627]
[1742566098954,0.00771784,1946.8,1946.7,6.30627]
[1742566099252,0.00771784,1946.8,1946.7,8.80627]
[1742566099455,3.721,1947.3,1946.8,2.56929]
[1742566099642,1.4,1947.4,1947.0,1.0276]
[1742566099845,1.02755,1947.1,1947.0,1.3611]
[1742566100044,1.02755,1947.1,1947.0,42.1611]
[1742566100252,1.02755,1947.1,1947.0,45.3689]
[1742566100447,1.4,1947.2,1947.1,1.02755]
[1742566100651,6.4241,1947.7,1947.1,1.02755]
[1742566100652,1.02731,1947.6,1947.1,2.56886]
[1742566100839,4.3692,1947.7,1947.1,2.56886]
[1742566100840,0.00771784,1947.3,1947.2,5.5295]
[1742566101044,0.00771784,1947.3,1947.2,1.2942]
[1742566101250,1.03516784,1947.3,1947.2,2.3217]
[1742566101647,0.00771784,1947.3,1947.2,2.3217]
[1742566101846,1.03516784,1947.3,1947.2,5.5295]
[1742566102149,1.03516784,1947.3,1947.2,1.2942]
[1742566102344,1.03516784,1947.3,1947.2,2.3217]
[1742566102544,0.00771784,1947.3,1947.2,5.5295]
[1742566102752,2.40726784,1947.3,1947.2,2.3217]
[1742566103150,1.37981784,1947.3,1947.2,5.5295]
[1742566103353,2.40726784,1947.3,1947.2,4.502]
[1742566103554,2.40726784,1947.3,1947.2,1.2942]
[1742566103750,2.40726784,1947.3,1947.2,2.3217]
[1742566104352,1.37981784,1947.3,1947.2,2.3217]
[1742566104654,2.40726784,1947.3,1947.2,2.3217]
[1742566104955,1.37981784,1947.3,1947.2,2.3217]
[1742566105157,1.37981784,1947.3,1947.2,5.5295]
[1742566105348,0.00771784,1947.3,1947.2,5.5295]
[1742566106642,0.00771784,1947.3,1947.2,2.3217]
[1742566106851,1.03516784,1947.3,1947.2,3.2078]
[1742566107152,1.02755,1947.1,1947.0,44.0078]
[1742566107456,1.02761,1947.0,1946.9,1.3204]
[1742566107656,1.02761,1947.0,1946.9,2.34806]
[1742566107853,1.02757,1947.1,1947.0,1.02757]
[1742566108055,2.45727,1947.1,1947.0,1.02757]
[1742566108353,1.02761,1947.0,1946.9,40.8]
[1742566108557,6.17731,1947.0,1946.9,40.8]
[1742566109258,6.17631,1947.0,1946.9,40.8]
[1742566111859,9.38411,1947.0,1946.9,40.8]
[1742566112059,1.02792,1946.4,1946.1,3.2078]
[1742566112249,1.02792,1946.4,1946.3,1.31251784]
[1742566112451,3.719,1946.5,1946.4,1.02792]
[1742566112763,8.125,1947.0,1946.9,1.02766]
[1742566112957,1.3659,1947.2,1947.0,1.02758]
[1742566113255,1.02764,1947.0,1946.9,1.02762]
[1742566113669,1.02771,1946.9,1946.8,1.02768]
[1742566113961,1.02775,1946.8,1946.7,1.02772]